Workbook

Sheet Calibration
GU14: A | HE14: X= | HO14: 0
CG15: =ABS(HO74-HO86) -> 0.25
HE19: Y= | HO19: 0
GU26: B | HE26: X= | HO26: -0.25
HE31: Y= | HO31: 0
GU38: C | HE38: X= | HO38: -15.5
HE43: Y= | HO43: 0
GU50: D | HE50: X= | HO50: 0
HE55: Y= | HO55: 1
GU62: E | HE62: X= | HO62: -0.2
HE67: Y= | HO67: =HO55 -> 1
GU74: F | HE74: X= | HO74: -0.5
HE79: Y= | HO79: =HO55 -> 1
GU86: G | HE86: X= | HO86: -0.75
HE91: Y= | HO91: =HO55 -> 1
GU103: B-C | HO103: =KX203 -> 1.25
KO169: =HO86 -> -0.75
KQ175: =HO55 -> 1
KQ180: =ABS(ATAN(KO169/KQ175)) -> 0.6435011088
KQ181: =DEGREES(KQ180) -> 36.86989765
KO184: =ABS(HO26) -> 0.25
KU187: =DEGREES(KU188) -> 26.56505118
KU188: =ATAN(KT201/ABS(KS192)) -> 0.463647609
KP192: =SQRT(KO169^2+KQ175^2) -> 1.25 | KS192: =HO55 -> 1
KP193: =KP192^2 -> 1.5625 | KU193: =KN194 -> 1.118033989
KN194: =SQRT((KP193+KP201)-(2*KP192*KP200*KQ198)) -> 1.118033989 | KU194: =KU193/2 -> 0.5590169944
KQ196: =DEGREES(KQ197) -> 53.13010235
KQ197: =RADIANS(90)-KQ180 -> 0.927295218 | KX197: =LA199/TAN(KW199) -> 1.118033989
KQ198: =COS(KQ197) -> 0.6 | KW198: =DEGREES(KW199) -> 26.56505118
KQ199: =SIN(KQ197) -> 0.8 | KW199: =KU188 -> 0.463647609 | LA199: =KU194 -> 0.5590169944
KP200: =KO184 -> 0.25
KP201: =KP200^2 -> 0.0625 | KT201: =SQRT(KU193^2-KS192^2) -> 0.5
KX203: =SQRT(KX197^2+LA199^2) -> 1.25
KY205: =KO184+KX203 -> 1.5
